[Event "ROU-chT Women Superliga 2018"]
[Site "Sovata"]
[Date "2018.11.27"]
[Round "3"]
[White "Stanciu, Andreea-Briana"]
[Black "Panainte, Andreea-Bianca"]
[Result "0-1"]
[ECO "C07"]
[WhiteElo "1953"]
[BlackElo "1946"]
[Annotator "NA"]
[PlyCount "78"]
[EventDate "2018.11.24"]
[EventType "team-tourn"]
[EventCountry "ROU"]
[SourceTitle "playchess.com"]
[Source "ChessBase"]
[SourceQuality "1"]
[TimeControl "40/5400+30:1800+30"]

1. e4 {[%emt 0:01:11]} e6 {[%emt 0:00:00]} 2. d4 {[%emt 0:00:37]} d5 {[%emt 0:00:00]} 3. Nd2 {[%emt 0:00:04]} c5 {[%emt 0:00:00]} 4. Ngf3 {[%emt 0:00:54]} Nc6 {[%emt 0:00:43]} 5. exd5 {[%emt 0:02:03]} Qxd5 {[%emt 0:00:08]} 6. Bc4 {[%emt 0:00:27]} Qd7 {[%emt 0:00:05]} 7. dxc5 {[%emt 0:00:32]} Bxc5 {[%emt 0:00:21]} 8. O-O {[%emt 0:00:17]} Nf6 {[%emt 0:00:44]} 9. c3 {[%emt 0:01:38]} O-O {[%emt 0:00:45]} 10. Qe2 {[%emt 0:01:15]} Ne7 {[%emt 0:14:37]} 11. Nb3 {[%emt 0:04:32]} Bd6 {[%emt 0:01:12]} 12. Nbd4 {[%emt 0:00:22]} a6 {[%emt 0:01:59]} 13. Re1 {[%emt 0:13:29]} Ned5 {[%emt 0:02:34]} 14. Ne5 $11 {[%emt 0:05:09]} Bxe5 {[%emt 0:04:50]} 15. Qxe5 {[%emt 0:00:11]} b5 {[%emt 0:05:53]} 16. Bd3 {[%emt 0:06:03]} h6 {[%emt 0:06:00]} 17. Qg3 {[%emt 0:01:39]} Kh8 {[%emt 0:02:07]} 18. Qh4 {[%emt 0:02:47]} Ng8 {[%emt 0:17:28]} 19. g4 {[%emt 0:11:11]} Bb7 {[%emt 0:13:29]} 20. g5 {[%emt 0:01:06]} g6 {[%emt 0:01:17]} 21. gxh6 {[%emt 0:00:32]} Kh7 {[%emt 0:02:31]} 22. Qg3 {[%emt 0:02:43]} Ndf6 {[%emt 0:05:59]} 23. Bg5 {[%emt 0:03:57]} Qd5 {[%emt 0:01:26]} 24. f3 {[%emt 0:00:14]} Nh5 {[%emt 0:02:12]} 25. Qh4 {[%emt 0:07:26]} e5 {[%emt 0:11:19]} 26. Be4 {[%emt 0:03:20]} Qd7 {[%emt 0:00:07]} 27. Nb3 {[%emt 0:02:26]} Bxe4 {[%emt 0:00:16]} 28. fxe4 {[%emt 0:06:58]} Nxh6 {[%emt 0:02:11]} 29. Rad1 {[%emt 0:01:54]} Qe6 {[%emt 0:01:02]} 30. Rd5 {[%emt 0:03:07]} f6 {[%emt 0:00:18]} 31. Be3 {[%emt 0:02:02]} Qg4+ {[%emt 0:02:33]} 32. Qxg4 {[%emt 0:00:06]} Nxg4 {[%emt 0:00:05]} 33. Rd7+ {[%emt 0:00:06]} Kg8 {[%emt 0:01:00]} 34. Bb6 {[%emt 0:01:27]} Nf4 {[%emt 0:00:47]} 35. Nc5 {[%emt 0:04:10]} f5 {[%emt 0:00:33]} 36. Rd6 {[%emt 0:00:56]} Rf7 {[%emt 0:00:16]} 37. Ne6 {[%emt 0:01:26]} Rf6 {[%emt 0:00:43]} 38. Nc7 {[%emt 0:01:08]} Rxd6 {[%emt 0:00:15]} 39. Nxa8 {[%emt 0:00:05]} Rd2 {[%emt 0:00:14]} 0-1

[Event "ROU-chT Women Superliga 2018"]
[Site "Sovata"]
[Date "2018.11.27"]
[Round "3"]
[White "Firaru, Roxana-Maria"]
[Black "Anton, Ana-Roxana"]
[Result "0-1"]
[ECO "C05"]
[WhiteElo "1943"]
[BlackElo "1860"]
[Annotator "NA"]
[PlyCount "92"]
[EventDate "2018.11.24"]
[EventType "team-tourn"]
[EventCountry "ROU"]
[SourceTitle "playchess.com"]
[Source "ChessBase"]
[SourceQuality "1"]
[TimeControl "40/5400+30:1800+30"]

1. e4 {[%emt 0:00:48]} e6 {[%emt 0:00:00]} 2. d4 {[%emt 0:00:07]} d5 {[%emt 0:00:00]} 3. Nd2 {[%emt 0:00:47]} Nf6 {[%emt 0:05:52]} 4. e5 {[%emt 0:00:47]} Nfd7 {[%emt 0:00:04]} 5. Ngf3 {[%emt 0:00:16]} c5 {[%emt 0:01:24]} 6. c3 {[%emt 0:03:36]} b6 {[%emt 0:02:36]} 7. Be2 {[%emt 0:00:58]} Ba6 {[%emt 0:00:10] C05: French Tarrasch: 3...Nf6 4 e5 Nfd7, 5 f4 and 5 Bd3 sidelines} 8. O-O {[%emt 0:03:02]} Be7 {[%emt 0:02:51]} 9. Re1 {[%emt 0:01:59]} (9. c4 cxd4 10. Re1 dxc4 11. Nxc4 Nc6 12. Nxd4 Nxd4 13. Qxd4 O-O 14. Qg4 {1-0 (62) Bogner,S (2589)-Pelletier,Y (2544) Switzerland 2017}) 9... O-O {[%emt 0:09:16]} 10. Nf1 {[%emt 0:02:53]} Re8 $146 {[%emt 0:16:54]} ({Predecessor:} 10... Bxe2 11. Qxe2 a5 12. h3 Nc6 13. Be3 Rb8 14. N3h2 b5 15. Qg4 {1-0 (37) Anaskin,A (1916)-Eret,J (1898) Czechia 2013}) 11. Bxa6 {[%emt 0:17:38]} Nxa6 {[%emt 0:00:15]} 12. Qa4 {[%emt 0:00:29]} Nc7 {[%emt 0:01:17]} 13. dxc5 {[%emt 0:05:06]} bxc5 {[%emt 0:10:41]} 14. Qg4 {[%emt 0:01:16]} f5 {[%emt 0:06:58]} 15. Qg3 {[%emt 0:03:52]} Nf8 {[%emt 0:02:02]} 16. h4 {[%emt 0:02:47]} Kh8 {[%emt 0:12:15]} 17. h5 {[%emt 0:07:11]} h6 {[%emt 0:04:14]} 18. N1h2 {[%emt 0:04:58]} Nh7 {[%emt 0:03:34]} 19. Be3 {[%emt 0:05:36]} Rf8 {[%emt 0:01:50]} 20. Rad1 {[%emt 0:06:15]} a5 {[%emt 0:02:24]} 21. Rd2 {[%emt 0:11:03]} a4 {[%emt 0:00:30]} 22. Red1 {[%emt 0:01:44]} Rb8 {[%emt 0:01:04]} 23. Qf4 {[%emt 0:05:30]} Qe8 {[%emt 0:00:44]} 24. g4 {[%emt 0:04:14]} Ng5 {[%emt 0:03:11]} 25. Kh1 {[%emt 0:03:07]} Ne4 {[%emt 0:00:51]} 26. Rc2 {[%emt 0:01:20]} a3 {[%emt 0:05:01]} 27. b3 {[%emt 0:00:22]} Nb5 {[%emt 0:00:07]} 28. Rdc1 {[%emt 0:03:03]} Nbxc3 {[%emt 0:03:20]} 29. Rxc3 {[%emt 0:00:40]} Nxc3 {[%emt 0:00:06]} 30. Rxc3 {[%emt 0:00:14]} d4 {[%emt 0:00:04]} 31. Nxd4 {[%emt 0:02:38]} cxd4 {[%emt 0:00:04]} 32. Qxd4 {[%emt 0:00:54]} Rb4 {[%emt 0:01:17]} 33. Qd2 {[%emt 0:00:23]} fxg4 {[%emt 0:02:09]} 34. Bxh6 {[%emt 0:00:22]} Qxh5 {[%emt 0:01:27]} 35. Bxg7+ {[%emt 0:00:47]} Kxg7 {[%emt 0:00:43]} 36. Rc7 {[%emt 0:00:01]} Qf7 {[%emt 0:01:55]} 37. Qe2 {[%emt 0:01:16]} Rf4 {[%emt 0:00:39]} 38. Kg1 {[%emt 0:00:27]} Re8 {[%emt 0:00:30]} 39. Nxg4 {[%emt 0:00:15]} Qg6 {[%emt 0:00:37]} 40. f3 {[%emt 0:00:00]} Rxg4+ {[%emt 0:00:00]} 41. fxg4 {[%emt 0:00:06]} Kg8 {[%emt 0:02:24]} 42. Kg2 {[%emt 0:01:38]} Bf8 {[%emt 0:04:55]} 43. Ra7 {[%emt 0:01:56]} Rc8 {[%emt 0:00:54]} 44. Qf3 {[%emt 0:07:15]} Qc2+ {[%emt 0:07:09]} 45. Kf1 {[%emt 0:02:13]} Qb1+ $19 {[%emt 0:01:42]} (45... Qc1+ $142 46. Kg2 Rc2+ {[%mdl 64] Double Attack} 47. Kg3 Qg1+ {[%mdl 64] Double Attack} 48. Kh4 Rh2+ 49. Kg5 Qxa7 50. Kf4 Bh6+ 51. Ke4 Rd2 52. Qf8+ Kxf8 53. g5 Qf2 54. gxh6 Rd4#) 46. Kg2 {[%emt 0:00:22]} Qb2+ {[%emt 0:01:25]} 0-1

[Event "ROU-chT Women Superliga 2018"]
[Site "Sovata"]
[Date "2018.11.27"]
[Round "3"]
[White "Nastase, Andreea-Cristina"]
[Black "Aciu, Malina-Andreea"]
[Result "0-1"]
[ECO "D20"]
[WhiteElo "1900"]
[BlackElo "1976"]
[Annotator "NA"]
[PlyCount "60"]
[EventDate "2018.11.24"]
[EventType "team-tourn"]
[EventCountry "ROU"]
[SourceTitle "playchess.com"]
[Source "ChessBase"]
[SourceQuality "1"]
[TimeControl "40/5400+30:1800+30"]

1. d4 {[%emt 0:00:11]} d5 {[%emt 0:00:00]} 2. c4 {[%emt 0:00:05]} dxc4 {[%emt 0:00:00]} 3. e3 {[%emt 0:00:33]} e5 {[%emt 0:00:00]} 4. Bxc4 {[%emt 0:01:42]} exd4 {[%emt 0:00:00]} 5. Nf3 {[%emt 0:02:29]} Bd6 {[%emt 0:05:38]} 6. Nxd4 {[%emt 0:06:11]} Nf6 {[%emt 0:02:21]} 7. Nc3 {[%emt 0:00:11]} a6 {[%emt 0:03:33]} 8. Qf3 {[%emt 0:04:19]} O-O {[%emt 0:06:25]} 9. h3 {[%emt 0:02:02]} Nbd7 {[%emt 0:06:04]} 10. Bb3 {[%emt 0:10:05]} c5 {[%emt 0:03:31]} 11. Nc2 {[%emt 0:06:34]} Ne5 {[%emt 0:01:48]} 12. Qe2 {[%emt 0:00:11]} b5 {[%emt 0:06:04]} 13. Bd5 {[%emt 0:02:24]} Nxd5 {[%emt 0:03:27]} 14. Nxd5 {[%emt 0:00:04]} Bb7 {[%emt 0:01:13]} 15. e4 {[%emt 0:01:55]} f5 {[%emt 0:05:33]} 16. O-O {[%emt 0:04:34]} Qh4 {[%emt 0:09:06]} 17. f4 {[%emt 0:07:36]} Ng6 {[%emt 0:08:54]} 18. exf5 {[%emt 0:02:01]} Bxd5 {[%emt 0:01:31]} 19. fxg6 {[%emt 0:00:06]} Bc4 {[%emt 0:03:35]} 20. Qf2 {[%emt 0:02:54]} Qxf2+ {[%emt 0:00:50]} 21. Rxf2 {[%emt 0:00:04]} hxg6 {[%emt 0:00:04]} 22. b3 {[%emt 0:03:14]} Bd3 {[%emt 0:01:28]} 23. Ne1 {[%emt 0:01:34]} Be4 {[%emt 0:00:59]} 24. Be3 {[%emt 0:01:49]} Rfe8 {[%emt 0:03:39]} 25. Rd2 {[%emt 0:02:11]} Bf8 {[%emt 0:01:28]} 26. Kf2 {[%emt 0:05:32]} Rac8 {[%emt 0:01:53]} 27. Nf3 {[%emt 0:11:31]} c4 {[%emt 0:04:21]} 28. bxc4 {[%emt 0:01:31]} bxc4 {[%emt 0:00:17]} 29. Rb2 {[%emt 0:02:08]} c3 {[%emt 0:01:48]} 30. Rb6 {[%emt 0:01:01]} Bxf3 {[%emt 0:00:50]} 0-1

[Event "ROU-chT Women Superliga 2018"]
[Site "Sovata"]
[Date "2018.11.27"]
[Round "3"]
[White "Pelin, Ana-Maria"]
[Black "Matasaru, Stephanie"]
[Result "1-0"]
[ECO "E69"]
[WhiteElo "1751"]
[BlackElo "1859"]
[Annotator "NA"]
[PlyCount "109"]
[EventDate "2018.11.24"]
[EventType "team-tourn"]
[EventCountry "ROU"]
[SourceTitle "playchess.com"]
[Source "ChessBase"]
[SourceQuality "1"]
[TimeControl "40/5400+30:1800+30"]

1. d4 {[%emt 0:00:00]} Nf6 {[%emt 0:00:00]} 2. c4 {[%emt 0:00:00]} g6 {[%emt 0:00:00]} 3. Nf3 {[%emt 0:00:00]} Bg7 {[%emt 0:00:01]} 4. g3 {[%emt 0:00:00]} O-O {[%emt 0:00:09]} 5. Bg2 {[%emt 0:00:00]} d6 {[%emt 0:00:09]} 6. O-O {[%emt 0:00:01]} Nbd7 {[%emt 0:00:09]} 7. Nc3 {[%emt 0:00:06]} e5 {[%emt 0:00:17]} 8. e4 {[%emt 0:00:16]} c6 {[%emt 0:01:36]} 9. h3 {[%emt 0:00:06]} Qa5 {[%emt 0:01:52]} 10. Be3 {[%emt 0:00:27]} exd4 {[%emt 0:01:38]} 11. Nxd4 {[%emt 0:00:16]} Nb6 {[%emt 0:02:01]} 12. Nb3 {[%emt 0:40:27] E69: King's Indian: Fianchetto: 6...Nbd7 7 0-0 e5 8 e4 c6 9 h3} Qh5 {[%emt 0:06:37]} 13. Qxh5 {[%emt 0:19:15]} Nxh5 {[%emt 0:00:39]} 14. g4 {[%emt 0:03:07]} Nf6 {[%emt 0:01:55] [#]} 15. Bxb6 $146 {[%emt 0:11:25]} ({Predecessor:} 15. Na5 Be6 16. Rfd1 Nfd7 17. Rac1 Nxc4 18. Nxc4 Bxc4 19. b3 Be6 {0-1 (72) Laznicka,V (2638)-Vachier Lagrave,M (2723) Sestao 2010}) 15... axb6 {[%emt 0:00:32]} 16. Rad1 {[%emt 0:00:47]} Rd8 {[%emt 0:08:43]} 17. Nd4 {[%emt 0:03:31]} Nd7 {[%emt 0:17:49]} 18. f4 {[%emt 0:00:23]} Bf6 {[%emt 0:06:13]} 19. b3 {[%emt 0:02:29]} Nc5 {[%emt 0:02:04]} 20. Nde2 {[%emt 0:02:09]} b5 {[%emt 0:06:56]} 21. cxb5 {[%emt 0:01:06]} cxb5 {[%emt 0:00:27]} 22. Rd2 {[%emt 0:01:24]} b4 {[%emt 0:12:43]} 23. Nd5 {[%emt 0:00:29]} Bg7 {[%emt 0:01:15]} 24. Nxb4 {[%emt 0:00:53]} Na6 {[%emt 0:04:31]} 25. Nd5 {[%emt 0:01:04]} Be6 {[%emt 0:02:06]} 26. Rfd1 {[%emt 0:05:44]} Bxd5 {[%emt 0:01:20]} 27. Rxd5 {[%emt 0:01:31]} Nb4 {[%emt 0:01:06]} 28. R5d2 {[%emt 0:01:19]} Rxa2 {[%emt 0:03:13]} 29. Rxa2 {[%emt 0:00:03]} Nxa2 {[%emt 0:00:08]} 30. e5 {[%emt 0:00:04]} Bf8 {[%emt 0:01:13]} 31. Bxb7 {[%emt 0:01:08]} Rb8 {[%emt 0:00:57]} 32. exd6 {[%emt 0:04:01]} Bxd6 {[%emt 0:01:39]} 33. Rxd6 {[%emt 0:00:05]} Rxb7 {[%emt 0:00:04]} 34. Rd3 {[%emt 0:00:11]} Nb4 {[%emt 0:01:00]} 35. Rf3 {[%emt 0:00:30]} Kg7 {[%emt 0:02:48]} 36. Kf2 {[%emt 0:00:48]} Re7 {[%emt 0:00:53]} 37. Ng3 {[%emt 0:01:45]} f6 {[%emt 0:01:25]} 38. Re3 {[%emt 0:01:19]} Rd7 {[%emt 0:01:09]} 39. Ne2 {[%emt 0:00:31]} Nd3+ {[%emt 0:01:32]} 40. Kf3 {[%emt 0:00:00]} Nb4 {[%emt 0:00:00]} 41. h4 {[%emt 0:03:50]} h6 {[%emt 0:04:02]} 42. Ng3 {[%emt 0:00:58]} Nc2 {[%emt 0:04:27]} 43. Rc3 {[%emt 0:00:26]} Nb4 {[%emt 0:00:54]} 44. f5 {[%emt 0:02:20]} g5 {[%emt 0:01:40]} 45. hxg5 {[%emt 0:01:47]} hxg5 {[%emt 0:00:23]} 46. Ne4 {[%emt 0:00:59]} Kf7 {[%emt 0:04:51]} 47. Nc5 {[%emt 0:02:25]} Re7 {[%emt 0:04:34]} 48. Ne6 {[%emt 0:01:29]} Nd5 {[%emt 0:01:09]} 49. Rc4 {[%emt 0:00:55]} Rd7 {[%emt 0:05:12] [#]} (49... Nb6 $16 {was called for.}) 50. Ke4 {[%emt 0:03:22]} ({White should play} 50. b4 $1 $18) 50... Ke7 {[%emt 0:00:37] [#]} (50... Nb6 $16 {is a better defense.}) 51. b4 $1 {[%emt 0:00:54]} Nb6 {[%emt 0:03:25]} 52. Rd4 {[%emt 0:04:35]} Rxd4+ $4 {[%emt 0:04:49]} (52... Ra7 $16 {is more resistant.} 53. Nd8 Rc7) 53. Kxd4 {[%emt 0:00:22]} ({Not} 53. Nxd4 Nc4 $16) 53... Kd6 {[%emt 0:00:42]} 54. Nc5 {[%emt 0:02:38]} Nd5 {[%emt 0:01:10]} 55. Ne4+ {[%emt 0:00:13]} 1-0

[Event "ROU-chT Women Superliga 2018"]
[Site "Sovata"]
[Date "2018.11.27"]
[Round "3"]
[White "Popa, Catalina-Elena"]
[Black "Bulmaga, Irina"]
[Result "0-1"]
[ECO "A48"]
[WhiteElo "1746"]
[BlackElo "2386"]
[Annotator "NA"]
[PlyCount "74"]
[EventDate "2018.11.24"]
[EventType "team-tourn"]
[EventCountry "ROU"]
[SourceTitle "playchess.com"]
[Source "ChessBase"]
[SourceQuality "1"]
[TimeControl "40/5400+30:1800+30"]

1. d4 {[%emt 0:00:53]} Nf6 {[%emt 0:00:00]} 2. Nf3 {[%emt 0:00:03]} g6 {[%emt 0:00:00]} 3. Bf4 {[%emt 0:00:37]} Bg7 {[%emt 0:00:00]} 4. e3 {[%emt 0:00:11]} O-O {[%emt 0:00:05]} 5. Be2 {[%emt 0:00:23]} d6 {[%emt 0:00:17]} 6. O-O {[%emt 0:00:53]} b6 {[%emt 0:00:36]} 7. c3 {[%emt 0:02:30]} Bb7 {[%emt 0:00:15]} 8. Nbd2 {[%emt 0:00:55]} Nbd7 {[%emt 0:00:30]} 9. h3 {[%emt 0:00:21]} Re8 {[%emt 0:00:28]} 10. Bh2 {[%emt 0:01:38] A48: 1 d4 Nf6 2 Nf3 g6: Torre, London and Colle Systems} h6 {[%emt 0:02:00]} (10... e5 11. dxe5 dxe5 12. Nc4 Ne4 13. Qc2 Qe7 14. Rad1 h6 15. Nfd2 Ng5 16. h4 Nh7 17. h5 gxh5 18. Qf5 h4 19. Nf3 Nhf8 {0-1 (40) Wang,C (2529)-Wei,Y (2737) Shenzhen 2015}) 11. Re1 $146 {[%emt 0:11:53]} ({Predecessor:} 11. Qb3 e6 12. Rfd1 Ne4 13. Nxe4 Bxe4 14. Nd2 Bb7 15. Bf3 Bxf3 16. Nxf3 {1-0 (97) Batchinsky,B-Paganelli,R Geneve 1995}) 11... e5 {[%emt 0:03:13]} 12. Nc4 {[%emt 0:02:53]} Nh7 {[%emt 0:04:59]} 13. Qc2 {[%emt 0:05:43]} Qe7 {[%emt 0:02:56]} (13... e4 $5 14. Nfd2 $8 Qe7 $11) 14. Rad1 {[%emt 0:07:18]} a6 {[%emt 0:03:33]} 15. Bg3 {[%emt 0:13:45]} e4 {[%emt 0:05:20]} 16. Nfd2 {[%emt 0:01:12]} d5 {[%emt 0:00:23]} 17. Na3 {[%emt 0:01:20]} c5 {[%emt 0:00:51]} 18. dxc5 {[%emt 0:07:35]} Nxc5 {[%emt 0:02:59]} 19. Nb3 {[%emt 0:03:42]} Rac8 {[%emt 0:00:52]} 20. Nd4 {[%emt 0:01:25]} b5 {[%emt 0:00:33]} 21. Qb1 {[%emt 0:10:49]} h5 {[%emt 0:01:38]} 22. Nac2 {[%emt 0:01:47]} Ng5 {[%emt 0:05:35]} 23. Nb3 {[%emt 0:01:40]} Na4 {[%emt 0:04:26]} 24. Nbd4 {[%emt 0:02:31]} Bf6 {[%emt 0:02:23]} 25. Nb4 {[%emt 0:01:59]} Ne6 {[%emt 0:02:49]} 26. Nxb5 {[%emt 0:03:20]} axb5 {[%emt 0:00:16]} 27. Bxb5 {[%emt 0:00:02]} Nb6 {[%emt 0:00:28]} 28. Bxe8 {[%emt 0:00:24]} Rxe8 {[%emt 0:00:24]} 29. a3 {[%emt 0:03:49]} h4 {[%emt 0:00:22]} 30. Bh2 {[%emt 0:00:15]} Ng5 {[%emt 0:02:02]} 31. Qa2 {[%emt 0:01:10]} Qe6 {[%emt 0:01:37]} 32. Bc7 {[%emt 0:05:40]} Nc4 {[%emt 0:01:55]} 33. Nc2 {[%emt 0:03:02]} Nxh3+ {[%emt 0:01:55]} 34. Kf1 {[%emt 0:00:34]} d4 {[%emt 0:01:54]} 35. Nxd4 $19 {[%emt 0:03:20]} Nxe3+ {[%emt 0:01:42]} 36. fxe3 {[%emt 0:00:10]} Qxa2 {[%emt 0:00:46]} 37. gxh3 {[%emt 0:00:05]} Qc4+ {[%emt 0:00:06]} 0-1

[Event "ROU-chT Women Superliga 2018"]
[Site "Sovata"]
[Date "2018.11.27"]
[Round "3"]
[White "Patru, Alexandra-Ioana"]
[Black "Lehaci, Miruna-Daria"]
[Result "0-1"]
[ECO "A48"]
[WhiteElo "1631"]
[BlackElo "2067"]
[Annotator "NA"]
[PlyCount "82"]
[EventDate "2018.11.24"]
[EventType "team-tourn"]
[EventCountry "ROU"]
[SourceTitle "playchess.com"]
[Source "ChessBase"]
[SourceQuality "1"]
[TimeControl "40/5400+30:1800+30"]

1. d4 {[%emt 0:00:53]} Nf6 {[%emt 0:00:00]} 2. Nf3 {[%emt 0:00:06]} g6 {[%emt 0:00:00]} 3. c4 {[%emt 0:00:29]} Bg7 {[%emt 0:00:00]} 4. g3 {[%emt 0:00:17]} O-O {[%emt 0:00:00]} 5. Bg2 {[%emt 0:00:03]} d5 {[%emt 0:00:24]} 6. b3 {[%emt 0:06:00]} dxc4 {[%emt 0:09:21]} 7. bxc4 {[%emt 0:00:26]} c5 {[%emt 0:00:02]} 8. e3 {[%emt 0:03:57]} Qc7 {[%emt 0:05:07]} 9. Nbd2 {[%emt 0:02:42]} cxd4 {[%emt 0:03:15]} 10. exd4 {[%emt 0:00:09]} Bf5 {[%emt 0:01:39]} 11. Bb2 {[%emt 0:02:01]} Nc6 {[%emt 0:03:58]} 12. a3 {[%emt 0:07:31]} Na5 {[%emt 0:08:08]} 13. Qe2 {[%emt 0:23:16]} Qb6 {[%emt 0:01:51]} 14. Bc3 {[%emt 0:00:13]} Nb3 {[%emt 0:14:08]} 15. Nxb3 {[%emt 0:03:14]} Qxb3 {[%emt 0:00:16]} 16. Qb2 {[%emt 0:02:54]} Qxc4 {[%emt 0:01:53]} 17. Ne5 {[%emt 0:02:18]} Qc7 {[%emt 0:00:22]} 18. Rc1 {[%emt 0:02:37]} Be4 {[%emt 0:02:36]} 19. Bxe4 {[%emt 0:01:42]} Nxe4 {[%emt 0:00:05]} 20. Bb4 {[%emt 0:01:17]} Qd8 {[%emt 0:00:31]} 21. O-O {[%emt 0:01:21]} Bf6 {[%emt 0:14:12]} 22. Rc2 {[%emt 0:02:58]} Ng5 {[%emt 0:05:17]} 23. f4 {[%emt 0:02:20]} Ne6 {[%emt 0:00:13]} 24. Rd2 {[%emt 0:00:11]} Qd5 {[%emt 0:02:34]} 25. Rfd1 {[%emt 0:01:28]} Rfd8 {[%emt 0:01:38]} 26. Qc3 {[%emt 0:03:11]} a5 {[%emt 0:03:32]} 27. Bc5 {[%emt 0:01:33]} Rdc8 {[%emt 0:00:05]} 28. Qf3 {[%emt 0:02:43]} Qxf3 {[%emt 0:00:15]} 29. Nxf3 {[%emt 0:00:06]} Nxc5 {[%emt 0:00:03]} 30. dxc5 {[%emt 0:00:10]} Rxc5 {[%emt 0:00:07]} 31. Rd3 {[%emt 0:00:38]} Rac8 {[%emt 0:00:25]} 32. a4 {[%emt 0:02:33]} Rc1 {[%emt 0:00:54]} 33. Rxc1 {[%emt 0:00:26]} Rxc1+ {[%emt 0:00:03]} 34. Kg2 {[%emt 0:00:14]} Ra1 {[%emt 0:01:12]} 35. Rb3 {[%emt 0:00:17]} Ra2+ {[%emt 0:00:06]} 36. Kf1 {[%emt 0:00:13]} Rxa4 {[%emt 0:00:48]} 37. Rxb7 {[%emt 0:00:08]} Ra2 {[%emt 0:00:06]} 38. Ra7 {[%emt 0:00:20]} a4 {[%emt 0:00:05]} 39. h4 {[%emt 0:00:25]} a3 {[%emt 0:01:08]} 40. Ne1 {[%emt 0:00:00]} Bd4 {[%emt 0:00:00]} 41. Nd3 {[%emt 0:00:58]} Bxa7 {[%emt 0:00:48]} 0-1

[Event "ROU-chT Women Superliga 2018"]
[Site "Sovata"]
[Date "2018.11.28"]
[Round "4"]
[White "Bulmaga, Irina"]
[Black "Baciu, Anca-Otilia"]
[Result "1-0"]
[ECO "B81"]
[WhiteElo "2386"]
[BlackElo "1998"]
[Annotator "NA RC"]
[PlyCount "57"]
[EventDate "2018.11.24"]
[EventType "team-tourn"]
[EventCountry "ROU"]
[SourceTitle "playchess.com"]
[Source "ChessBase"]
[SourceQuality "1"]
[TimeControl "40/5400+30:1800+30"]

1. e4 {[%emt 0:00:00]} c5 {[%emt 0:02:03]} 2. Nf3 {[%emt 0:00:00]} e6 {[%emt 0:00:11]} 3. d4 {[%emt 0:00:00]} cxd4 {[%emt 0:00:09]} 4. Nxd4 {[%emt 0:00:00]} Nf6 {[%emt 0:00:07]} 5. Nc3 {[%emt 0:00:05]} d6 {[%emt 0:00:08]} 6. g4 {[%emt 0:00:13]} h6 {[%emt 0:00:16]} 7. h3 {[%emt 0:00:15]} a6 {[%emt 0:00:29]} 8. Bg2 {[%emt 0:00:19]} Qc7 {[%emt 0:00:32]} 9. f4 {[%emt 0:00:50] B81: Sicilian Scheveningen: Keres Attack} Nc6 {[%emt 0:00:44]} 10. Be3 {[%emt 0:00:42]} Bd7 {[%emt 0:03:22]} (10... Na5 11. Qe2 Nc4 12. O-O-O Bd7 13. Kb1 Rc8 14. Bc1 e5 15. Nd5 Nxd5 16. exd5 Be7 17. Nf3 exf4 {½-½ (38) Leko,P (2699)-Stella,A (2500) Gallipoli 2017}) 11. Qe2 {[%emt 0:00:55]} Be7 {[%emt 0:00:31]} 12. O-O-O {[%emt 0:01:09]} g6 {[%emt 0:05:53]} 13. Qf2 $146 {[%emt 0:07:06]} ({Predecessor:} 13. Rhf1 Na5 14. Kb1 Rc8 15. Nf3 Nc4 16. Bg1 Nxb2 17. Bd4 Nxd1 18. Rxd1 O-O 19. h4 Qa5 20. g5 Nh5 21. gxh6 Rxc3 {0-1 (21) Palac,M (2575)-Lazarev,V (2500) Porto San Giorgio 1997}) 13... Rc8 {[%emt 0:19:27]} 14. Rhf1 {[%emt 0:05:07]} Nxd4 {[%emt 0:07:55]} 15. Bxd4 {[%emt 0:02:41]} O-O {[%emt 0:00:12]} 16. e5 {[%emt 0:02:46]} Ne8 {[%emt 0:02:10]} 17. f5 {[%emt 0:04:03]} Bc6 {[%emt 0:06:30]} 18. f6 {[%emt 0:04:18]} Bd8 {[%emt 0:02:14]} 19. exd6 {[%emt 0:07:39]} Qd7 {[%emt 0:04:37]} 20. Bxc6 {[%emt 0:05:45]} Rxc6 {[%emt 0:00:15]} 21. Be5 {[%emt 0:01:40]} Kh7 {[%emt 0:10:11]} 22. Ne4 {[%emt 0:00:42]} Bb6 {[%emt 0:01:16]} 23. Qe2 {[%emt 0:01:43]} Bc5 {[%emt 0:04:58]} 24. Qd3 {[%emt 0:00:29]} b5 {[%emt 0:00:42]} (24... Rh8 $142 25. h4 Kg8) 25. h4 {[%emt 0:00:12]} Rg8 {[%emt 0:00:46]} 26. h5 {[%emt 0:01:41]} Bb6 {[%emt 0:01:37]} 27. hxg6+ {[%emt 0:03:01]} Rxg6 {[%emt 0:00:21]} 28. Rh1 {[%emt 0:02:10]} Bd8 {[%emt 0:11:45]} 29. g5 $18 {[%emt 0:02:01]} 1-0

[Event "ROU-chT Women Superliga 2018"]
[Site "Sovata"]
[Date "2018.11.28"]
[Round "4"]
[White "Cosma, Elena-Luminita"]
[Black "Ciungan, Diana-Alexandra"]
[Result "1-0"]
[ECO "A43"]
[WhiteElo "2338"]
[BlackElo "1863"]
[Annotator "NA RC"]
[PlyCount "43"]
[EventDate "2018.11.24"]
[EventType "team-tourn"]
[EventCountry "ROU"]
[SourceTitle "playchess.com"]
[Source "ChessBase"]
[SourceQuality "1"]
[TimeControl "40/5400+30:1800+30"]

1. d4 {[%emt 0:00:00]} Nf6 {[%emt 0:00:00]} 2. Nf3 {[%emt 0:00:00]} c5 {[%emt 0:00:00]} 3. d5 {[%emt 0:00:00]} b5 {[%emt 0:00:00]} 4. Bg5 {[%emt 0:00:00]} Qb6 {[%emt 0:00:00]} 5. Bxf6 {[%emt 0:00:00]} Qxf6 {[%emt 0:00:04]} 6. c3 {[%emt 0:00:00]} d6 {[%emt 0:00:13]} 7. e4 {[%emt 0:00:36] A43: Schmid Benoni} a6 {[%emt 0:00:15]} 8. Qc2 {[%emt 0:01:31]} (8. Nbd2 g5 9. a4 g4 10. Ng1 b4 11. cxb4 cxb4 12. Nc4 Nd7 13. Bd3 Ne5 14. Nb6 Nxd3+ 15. Qxd3 Qxb2 {1-0 (50) Maze,S (2619)-Solodovnichenko,Y (2576) Chartres 2017}) 8... Nd7 {[%emt 0:04:51]} 9. a4 {[%emt 0:00:13]} Rb8 $146 {[%emt 0:00:48]} ({Predecessor:} 9... b4 10. Be2 Rb8 11. O-O g5 12. Nfd2 Ne5 13. Nc4 Bg7 14. a5 g4 15. Nxe5 Qxe5 {0-1 (40) Dimitrov,A (2317)-Ozgur,I (1930) Kesan 2017}) 10. axb5 {[%emt 0:02:34]} axb5 {[%emt 0:00:09]} 11. Ra5 {[%emt 0:02:43]} b4 {[%emt 0:10:17]} 12. Bb5 {[%emt 0:06:18]} bxc3 {[%emt 0:01:09]} 13. Nxc3 {[%emt 0:01:14]} e6 {[%emt 0:00:46]} 14. Ra7 {[%emt 0:07:55]} (14. Qb3 $142 Kd8 15. Ra7) 14... Qd8 {[%emt 0:02:39]} 15. Qa4 {[%emt 0:00:46]} Be7 {[%emt 0:02:40]} 16. O-O {[%emt 0:02:07]} Rb7 {[%emt 0:02:14]} 17. Rxb7 {[%emt 0:08:19]} Bxb7 {[%emt 0:00:05]} 18. e5 {[%emt 0:01:32]} Bc8 {[%emt 0:00:10]} 19. exd6 {[%emt 0:03:24]} Bxd6 {[%emt 0:00:05]} (19... Bf6 $142 20. dxe6 fxe6) 20. dxe6 {[%emt 0:02:27]} fxe6 {[%emt 0:00:08]} 21. Ne4 {[%emt 0:02:48]} Qc7 {[%emt 0:12:43]} 22. Bxd7+ $18 1-0